bitfinex/quotes_ETHUSD_20260227
["timestamp","ask_amount","ask_price","bid_price","bid_amount"]
[1772191744090,1.26409465,1977.7,1977.2,1.19568041]
[1772191745807,2.29336358,1977.7,1977.2,1.19568041]
[1772191748510,1.03021951,1977.6,1977.1,0.0011]
[1772191748676,1.03121951,1977.6,1977.1,0.0011]
[1772191749677,1.03121951,1977.6,1976.9,1.19568041]
[1772191749881,1.2642225,1977.5,1976.9,1.19568041]
[1772191750298,5.05789001,1977.6,1977.0,1.16951762]
[1772191750299,0.001,1977.6,1977.0,1.16951762]
[1772191750724,1.26395309,1978.0,1977.0,1.16951762]
[1772191750929,1.559,1977.8,1977.0,1.16951762]
[1772191751127,2.29612748,1978.3,1977.0,1.16951762]
[1772191751536,1.559,1978.2,1977.0,1.16951762]
[1772191752035,1.26383903,1978.1,1977.2,1.16951762]
[1772191753352,1.03298007,1978.5,1977.2,1.16951762]
[1772191753654,1.558,1978.4,1977.2,1.16951762]
[1772191754160,0.001,1978.9,1978.5,1.16951762]
[1772191754441,0.001,1978.8,1978.5,1.16951762]
[1772191756102,0.001,1978.8,1978.5,2.43304317]
[1772191756303,0.001,1978.9,1978.5,1.16951762]
[1772191756500,0.001,1978.8,1978.5,1.16951762]
[1772191757117,0.001,1978.8,1978.5,2.43309951]
[1772191757435,0.001,1978.8,1978.5,1.16951762]
[1772191757636,0.001,1978.8,1978.5,2.43309794]
[1772191757835,0.001,1978.8,1978.6,1.16951762]
[1772191758043,0.001,1978.7,1978.3,2.433188]
[1772191758216,0.001,1978.7,1978.4,1.16951762]
[1772191758533,0.001,1978.6,1978.4,1.16951762]
[1772191758708,0.001,1978.8,1978.4,1.16951762]
[1772191759135,0.001,1978.7,1978.4,1.16951762]
[1772191759309,0.001,1978.9,1978.4,1.16951762]
[1772191760548,0.001,1978.9,1978.4,2.43316191]
[1772191760707,0.001,1978.9,1978.5,1.16951762]
[1772191760912,0.001,1978.7,1978.5,1.16951762]
[1772191761548,0.001,1978.7,1978.3,2.43319203]
[1772191761711,0.001,1978.7,1978.4,1.16951762]
[1772191762715,0.001,1978.7,1978.4,2.43310248]
[1772191762916,0.001,1978.7,1978.5,1.16951762]
[1772191764423,0.001,1978.7,1977.7,1.16951762]
[1772191764736,1.03785954,1978.7,1977.7,1.16951762]
[1772191765044,1.26351966,1978.6,1977.9,1.16951762]
[1772191767745,2.30135755,1978.6,1977.9,2.43348163]
[1772191768070,1.03783789,1978.5,1977.7,1.16951762]
[1772191770256,2.30196245,1978.4,1977.7,1.16951762]
[1772191770760,1.03854362,1978.3,1977.7,1.16951762]
[1772191772477,1.26377514,1978.2,1977.7,1.16951762]
[1772191772853,1.26377514,1978.2,1977.7,1.11951762]
[1772191773381,1.0868444,1978.1,1977.8,0.0011]
[1772191773579,1.55,1978.0,1977.7,0.0011]
[1772191774183,2.6360604,1978.0,1977.5,0.0011]
[1772191774657,1.26396683,1977.9,1977.5,0.0011]
[1772191774979,1.1920393,1977.8,1977.3,0.0011]
[1772191775156,1.1920393,1977.8,1977.2,0.0011]
[1772191775773,1.1920393,1977.8,1977.0,1.17061762]
[1772191776576,5.1920393,1977.7,1977.0,1.17061762]
[1772191776755,2.45619787,1977.6,1977.0,1.17061762]
[1772191777258,2.45619787,1977.6,1977.0,0.0011]
[1772191778665,1.19564879,1977.5,1977.0,0.0011]
[1772191778858,1.26428643,1977.4,1977.0,0.0011]
[1772191779787,1.2642225,1977.5,1977.0,1.25039218]
[1772191781789,2.82015857,1977.6,1977.1,1.20834272]
[1772191783264,4.01200249,1977.6,1977.1,1.20834272]
[1772191784389,4.01200249,1977.6,1977.0,0.0011]
[1772191785061,4.01200249,1977.6,1977.0,1.26563323]
[1772191785261,4.01200249,1977.6,1977.0,0.0011]
[1772191785457,4.01200249,1977.6,1977.0,1.20944272]
[1772191785882,1.19001232,1977.5,1977.0,1.20944272]
[1772191786085,1.19001232,1977.5,1977.2,0.0011]
[1772191786086,1.26428643,1977.4,1977.2,0.0011]
[1772191787972,1.26428643,1977.4,1977.2,1.20944272]
[1772191788167,1.26426921,1977.5,1977.2,1.20944272]
[1772191789187,2.45255084,1977.5,1977.2,0.0011]
[1772191792098,1.26426921,1977.5,1977.2,0.0011]
[1772191792273,1.26426921,1977.5,1977.2,1.20944272]
[1772191792887,1.26426921,1977.5,1977.2,0.0011]
[1772191794779,2.44923662,1977.5,1977.2,0.0011]
[1772191797894,2.44923662,1977.5,1977.3,0.0011]
[1772191798093,1.26426921,1977.5,1977.3,0.0011]
[1772191798391,0.001,1977.4,1977.3,0.0011]
[1772191800281,0.001,1977.4,1977.0,1.20944272]
[1772191801275,1.21068531,1977.4,1977.0,0.0011]
[1772191801574,1.21068531,1977.4,1976.9,0.0011]
[1772191801575,1.21068531,1977.4,1976.8,0.0011]
[1772191801995,0.001,1977.4,1976.9,1.20834272]
[1772191802200,1.58,1977.4,1976.9,1.20834272]
[1772191802401,1.579,1977.7,1976.9,1.20834272]
[1772191802698,1.579,1977.8,1976.9,1.20834272]
[1772191802910,1.579,1977.8,1977.1,1.20834272]
[1772191803306,1.20968531,1977.7,1977.1,1.20834272]
[1772191803680,1.20968531,1977.7,1976.9,1.20834272]
[1772191804982,1.26415857,1977.6,1977.0,1.20834272]
[1772191805306,1.578,1977.5,1977.0,1.20834272]
[1772191805599,2.78768531,1977.5,1977.0,1.20834272]
[1772191806001,1.26415857,1977.6,1977.0,1.20834272]
[1772191806208,1.579,1977.5,1977.0,1.20834272]
[1772191806677,2.47384388,1977.6,1977.0,1.20834272]
[1772191806678,1.26415857,1977.6,1977.0,1.20834272]
[1772191806881,1.20968531,1977.7,1977.3,0.025287]
[1772191807075,1.26415857,1977.6,1977.3,0.025287]
[1772191807991,2.47382605,1977.7,1977.3,0.025287]
[1772191809078,1.20968531,1977.6,1977.1,1.20834272]
[1772191809283,5.05637862,1978.0,1977.4,0.34855149]
[1772191809284,1.20968531,1978.0,1977.4,0.34855149]
[1772191809506,2.84496683,1977.9,1977.4,1.55689421]
[1772191809809,1.581,1977.9,1977.4,1.55689421]
[1772191809987,1.581,1977.9,1977.2,1.5687302]
[1772191809988,1.24680899,1977.8,1977.2,1.5687302]
[1772191810381,1.24680899,1977.8,1977.2,1.22017871]
[1772191810580,0.001,1977.7,1977.2,1.22017871]
[1772191811211,0.001,1977.7,1977.0,1.22127871]
[1772191811212,1.24680899,1977.6,1977.0,1.22127871]
[1772191811380,1.24680899,1977.6,1977.1,1.22017871]
[1772191813190,2.5110069,1977.6,1977.1,2.48463936]
[1772191813388,1.26510118,1977.7,1977.4,1.5687302]
[1772191813593,0.001,1977.7,1977.4,1.22017871]
[1772191813795,1.26509679,1977.7,1977.4,1.22017871]
[1772191814019,0.001,1977.7,1977.4,1.22017871]
[1772191814693,0.001,1977.7,1977.5,1.22017871]
[1772191814926,2.84496169,1978.0,1977.5,1.22017871]
[1772191815406,2.84496169,1978.0,1976.9,5.0590131]
[1772191815407,1.24680899,1977.4,1976.7,0.0011]
[1772191815609,1.24680899,1977.2,1976.7,0.0011]
[1772191816088,1.66679395,1977.1,1976.7,0.0011]
[1772191816407,2.99263192,1977.1,1976.7,0.0011]
[1772191817034,1.24680899,1977.0,1976.7,0.0011]
[1772191817312,2.51147916,1976.8,1976.5,0.0011]
[1772191818188,2.15369812,1976.7,1975.9,1.22017871]
[1772191818410,1.583,1976.6,1975.9,1.22017871]
[1772191819285,2.84782362,1976.6,1976.0,1.26518218]
[1772191819511,2.84782362,1976.6,1976.1,1.22017871]
[1772191819721,1.583,1976.6,1976.1,1.22017871]
[1772191819892,0.31338736,1976.6,1976.2,1.22017871]
[1772191820213,1.26465223,1976.9,1976.2,1.22017871]
[1772191821923,1.26465223,1976.9,1976.3,2.48516884]
[1772191822097,1.26465223,1976.9,1976.6,0.0011]
[1772191822613,0.001,1976.7,1976.6,0.0011]
[1772191823596,1.24680899,1977.4,1976.6,1.22127871]
[1772191823795,1.26425317,1977.5,1976.9,1.22017871]
[1772191825400,1.26415172,1977.7,1976.9,1.22017871]
[1772191825920,1.24680899,1977.6,1976.7,2.48486939]
[1772191826102,1.24680899,1977.6,1976.8,1.22017871]
[1772191827594,1.26415172,1977.7,1976.8,1.22017871]
[1772191827795,1.26415172,1977.7,1977.0,1.22017871]
[1772191828496,2.51096071,1977.7,1977.0,1.22017871]
[1772191829710,1.24680899,1977.6,1976.6,0.0011]
[1772191829912,1.24680899,1977.6,1976.6,2.48606191]
[1772191829913,1.24680899,1977.4,1976.6,2.48606191]
[1772191831611,1.24680899,1977.4,1976.7,1.22017871]
[1772191832013,1.24680899,1977.4,1976.6,0.0011]
[1772191832014,1.24680899,1977.2,1976.6,0.0011]
[1772191834503,1.26547827,1977.1,1976.6,0.0011]
[1772191835504,2.51228726,1977.1,1976.6,0.0011]
[1772191835706,1.24680899,1977.0,1976.6,0.0011]
[1772191836917,1.2646062,1976.9,1976.6,0.0011]
[1772191838849,1.24909654,1976.8,1976.6,0.0011]
[1772191839135,1.24909654,1976.8,1975.5,0.18251831]
[1772191839341,1.24909654,1976.6,1975.5,1.44802017]
[1772191839710,1.24909654,1976.4,1975.5,1.44802017]
[1772191839903,1.24909654,1976.2,1975.3,1.45209446]
[1772191840107,1.24909654,1976.2,1975.5,0.18651651]
[1772191841221,1.26511816,1976.1,1975.6,1.26543834]
[1772191841433,2.51420273,1976.2,1975.6,1.26543834]
[1772191842512,1.587,1976.3,1975.7,0.19041272]
[1772191843240,1.587,1976.3,1975.8,1.26531025]
[1772191843614,1.587,1976.3,1975.8,1.4576486]
[1772191843815,1.19963097,1976.2,1975.6,0.19423429]
[1772191844011,1.19963097,1976.2,1975.4,1.45973778]
[1772191844338,1.19963097,1976.2,1975.4,1.26550349]
[1772191844944,1.19963097,1976.2,1975.2,0.19423429]
[1772191845246,1.26511816,1976.1,1975.2,1.45990737]
[1772191845417,1.19963097,1976.0,1975.2,1.45990737]
[1772191845612,1.19963097,1976.0,1974.8,2.59931653]
[1772191845826,1.19963097,1976.0,1974.9,0.19795129]
[1772191846512,1.19963097,1976.0,1975.5,0.0011]
[1772191847125,1.19963097,1975.8,1975.5,0.0011]
[1772191847422,2.46500526,1975.7,1975.5,0.0011]
[1772191847737,1.19963097,1975.6,1975.3,0.0011]
[1772191849232,1.19963097,1975.6,1974.8,3.86524944]
[1772191849617,2.46513337,1975.5,1974.8,3.86524944]
[1772191849932,1.2655024,1975.5,1974.8,1.47107617]
[1772191850119,1.26548982,1975.6,1974.9,0.20514326]
[1772191850319,2.46512079,1975.6,1974.9,0.20514326]
[1772191850715,2.46512079,1975.6,1974.8,1.26593291]
[1772191850716,1.19963097,1975.5,1974.7,0.20689893]
[1772191850925,1.19963097,1975.5,1974.7,1.47289144]
[1772191851732,2.46519743,1975.4,1974.7,1.47289144]
[1772191852534,1.19963097,1975.4,1974.8,0.20866071]
[1772191852930,1.19963097,1975.4,1974.6,1.26712781]
[1772191853135,1.19963097,1975.4,1974.6,1.47749453]
[1772191853350,1.19963097,1975.2,1974.6,0.0011]
[1772191853820,1.26575869,1975.1,1974.6,0.0011]
[1772191854224,2.46536321,1975.2,1974.6,0.0011]
[1772191855951,1.19963097,1975.1,1974.6,0.0011]
[1772191858039,1.26582278,1975.0,1974.7,0.0011]
[1772191858549,2.46545375,1975.0,1974.7,0.0011]
[1772191859327,2.46538707,1975.2,1974.7,0.0011]
[1772191859530,1.19963097,1975.1,1974.7,0.0011]
[1772191860434,1.26582278,1975.0,1974.7,0.0011]
[1772191860637,1.19963097,1974.9,1974.7,0.0011]
[1772191861165,1.19963097,1974.9,1974.6,0.0011]
[1772191861364,1.19963097,1974.9,1974.4,0.0011]
[1772191862556,1.19963097,1974.7,1974.4,0.0011]
[1772191862865,2.78863097,1975.3,1974.5,0.22759608]
[1772191863160,1.26556844,1975.4,1974.5,0.22759608]
[1772191863456,2.46616882,1975.5,1974.5,0.22759608]
[1772191864035,1.19963097,1975.4,1974.5,0.22759608]
[1772191864434,1.19963097,1975.2,1974.5,1.4937337]
[1772191864760,1.19963097,1975.2,1974.5,1.26613762]
[1772191865163,1.26563053,1975.3,1974.6,0.23060612]
[1772191865332,1.19963097,1975.4,1974.6,0.23060612]
[1772191865541,2.46520165,1975.4,1974.6,0.23060612]
[1772191866154,0.001,1975.5,1974.9,0.23210286]
[1772191866486,2.51523422,1976.4,1974.9,0.23210286]
[1772191866487,1.26493237,1976.4,1975.4,0.23110286]
[1772191866666,2.46456334,1976.4,1975.4,0.23110286]
[1772191867057,1.19963097,1976.4,1975.5,0.23256461]
[1772191867746,2.46455926,1976.4,1975.5,0.23256461]
[1772191868151,4.05741479,1976.7,1975.5,0.23256461]
[1772191868455,4.05741479,1976.7,1975.7,0.23399732]
[1772191868650,1.19963097,1976.6,1975.7,0.23399732]
[1772191870264,0.001,1976.3,1975.7,0.23399732]
[1772191871673,0.001,1976.3,1975.8,1.26531025]
[1772191871876,1.28626804,1976.3,1975.4,1.50642418]
[1772191872077,1.28626804,1976.3,1975.5,5.06188471]
[1772191872457,1.28626804,1976.3,1975.5,1.2655024]
[1772191873163,1.28626804,1976.3,1975.6,0.24225516]
[1772191873766,2.55126363,1976.3,1975.7,1.26537429]
[1772191874177,1.28626804,1976.3,1975.7,1.26537429]
[1772191876055,1.28526804,1976.2,1975.2,5.30890493]
[1772191876244,1.28526804,1976.2,1975.3,0.24617853]
[1772191877175,1.28526804,1976.2,1975.2,5.0627264]
[1772191877955,1.28526804,1976.0,1975.2,5.0627264]
[1772191879967,1.26524621,1975.9,1975.2,5.0627264]
[1772191880172,1.28526804,1975.8,1975.2,5.0627264]
[1772191880755,2.55050133,1976.0,1975.2,5.31511961]
[1772191880955,1.28526804,1975.9,1975.3,0.25239321]
[1772191881583,1.28526804,1975.9,1975.2,1.26569461]
[1772191881883,1.28526804,1975.9,1974.6,1.51966908]
[1772191882081,1.28526804,1975.7,1974.6,1.51966908]
[1772191882280,1.28526804,1975.7,1974.7,0.25468988]
[1772191882661,1.28526804,1975.7,1975.2,0.0011]
[1772191883961,1.26543834,1975.6,1975.2,0.0011]
[1772191884476,2.55063667,1975.8,1975.2,0.0011]
[1772191884677,1.28526804,1975.7,1975.2,0.0011]
[1772191886563,2.55069537,1975.7,1975.2,0.0011]
[1772191886765,1.28526804,1975.6,1975.2,0.0011]
[1772191887990,1.28526804,1975.6,1975.0,0.0011]
[1772191889096,1.2655024,1975.5,1975.0,0.0011]
[1772191890291,2.55077044,1975.5,1975.0,0.0011]
[1772191891369,1.28526804,1975.5,1975.0,0.0011]
[1772191891692,2.55079237,1975.5,1975.0,0.0011]
[1772191892084,1.28526804,1975.5,1975.0,0.0011]
[1772191892393,1.2661224,1976.1,1975.3,0.25391553]
[1772191892769,1.26612104,1976.1,1975.3,0.25391553]
[1772191893091,1.26611849,1976.1,1975.3,0.25391553]
[1772191893589,1.28526804,1976.0,1975.4,1.26556646]
[1772191893790,5.06097012,1976.3,1975.4,1.26556646]
[1772191893791,0.001,1976.3,1975.8,0.24316154]
[1772191893961,2.54991051,1976.9,1975.8,0.24316154]
[1772191894998,0.001,1976.1,1975.8,0.24316154]
[1772191895205,2.54991051,1976.9,1975.8,0.2378835]
[1772191895372,1.28526804,1976.9,1975.9,1.26524621]
[1772191895694,0.001,1977.1,1976.6,0.23265298]
[1772191896798,2.54940574,1977.7,1976.8,0.22748238]
[1772191896970,1.28526804,1977.7,1976.8,0.22748238]
[1772191897300,1.28526804,1977.6,1976.2,0.22748238]
[1772191897797,1.28526804,1977.4,1976.4,0.22748238]
[1772191898166,1.28526804,1977.7,1976.7,0.22236803]
[1772191899469,1.28526804,1977.7,1976.4,0.21231742]
[1772191899669,1.21469343,1977.5,1976.5,1.26486213]
[1772191900769,1.21469343,1977.5,1976.4,1.26487435]
[1772191900991,1.21469343,1977.5,1976.3,0.19766428]
[1772191901189,1.26583438,1977.2,1976.1,1.89683534]
[1772191901394,1.26583438,1977.0,1976.1,1.89683534]
[1772191901772,1.26583438,1976.8,1976.0,1.46280244]
[1772191902402,1.26583438,1976.8,1975.8,5.06112452]
[1772191902693,1.26583438,1976.8,1975.5,1.26543834]
[1772191903474,1.26583438,1976.8,1975.5,1.45363714]
[1772191903884,1.26583438,1976.6,1975.5,1.45363714]
[1772191904794,1.26583438,1976.6,1975.3,0.0011]
[1772191904972,1.26583438,1976.2,1975.3,0.0011]
[1772191905175,1.26583438,1976.0,1975.3,1.26672602]
[1772191905519,1.26583438,1976.0,1975.3,0.0011]
[1772191905991,1.26583438,1975.8,1975.3,0.0011]
[1772191907308,1.26583438,1975.8,1975.4,0.0011]
[1772191907774,1.26583438,1975.7,1975.2,0.0011]
[1772191907980,1.26583438,1975.5,1975.2,0.0011]
[1772191908401,1.26583438,1975.5,1975.0,0.0011]
[1772191908589,1.26583438,1975.5,1974.6,1.26606533]
[1772191909892,2.53137581,1975.5,1974.8,1.26595098]
[1772191911981,1.583,1975.7,1975.0,1.26582278]
[1772191912918,1.583,1975.7,1975.0,1.41090969]
[1772191913219,1.26583438,1975.8,1975.1,0.14508691]
[1772191913392,2.53115683,1975.8,1975.1,0.14508691]
[1772191913581,1.26583438,1975.7,1975.0,1.26582278]
[1772191913905,4.11406369,1976.0,1975.2,1.26569461]
[1772191914089,1.26583438,1975.9,1975.2,1.26569461]
[1772191915504,1.26583438,1975.9,1975.0,5.06314008]
[1772191916008,1.26583438,1975.9,1975.0,0.13280534]
[1772191916203,2.53112733,1975.9,1975.0,0.13280534]
[1772191916609,1.26583438,1975.8,1975.0,0.13280534]
[1772191918220,2.53118622,1975.8,1975.1,1.26575869]
[1772191919498,2.53118622,1975.8,1975.1,1.26685869]
[1772191919698,2.53218622,1975.8,1975.1,1.26685869]
[1772191919904,2.53218622,1975.8,1975.1,0.0011]
[1772191919905,1.26583438,1975.7,1975.1,0.0011]
[1772191920299,1.26583438,1975.5,1975.1,0.0011]
[1772191921621,2.44247021,1975.5,1974.8,0.0011]
[1772191921930,1.26583438,1975.4,1974.5,0.0011]
[1772191922601,1.26583438,1975.2,1974.5,0.0011]
[1772191922799,1.26583438,1975.0,1974.5,0.0011]
[1772191923789,1.26583438,1975.0,1974.3,0.0011]
[1772191924635,1.26583438,1974.8,1974.3,0.0011]
[1772191925691,1.26588688,1974.9,1974.3,0.0011]
[1772191925915,1.26583438,1974.8,1974.3,0.0011]
[1772191926702,2.53182387,1974.8,1974.3,0.0011]
[1772191928616,1.26583438,1974.7,1974.3,0.0011]
[1772191929297,2.53189412,1974.7,1974.3,0.0011]
[1772191929499,1.26583438,1974.7,1974.3,0.0011]
[1772191929925,3.32894597,1975.1,1974.3,0.0011]
[1772191929926,4.03500741,1975.1,1974.3,0.07958376]
[1772191930127,1.18821315,1975.0,1974.3,0.0011]
[1772191930418,1.18821315,1974.9,1974.3,0.0011]
[1772191930807,1.18821315,1974.7,1974.3,0.0011]
[1772191931320,2.45429235,1974.6,1974.3,0.0011]
[1772191931901,1.18821315,1975.0,1974.3,0.0011]
[1772191932112,2.77221315,1974.9,1974.3,0.0011]
[1772191932296,2.77221315,1974.9,1974.4,0.0011]
[1772191932498,1.18821315,1974.8,1974.4,0.0011]
[1772191932997,1.18821315,1974.8,1974.2,0.0011]
[1772191933400,1.18766315,1974.6,1974.2,0.0011]
[1772191934332,2.45366291,1974.8,1974.2,0.0011]
[1772191934531,1.18766315,1974.8,1974.2,0.06746175]
[1772191934732,1.585,1974.9,1974.2,0.06746175]
[1772191934924,2.85089552,1974.9,1974.2,0.06746175]
[1772191935135,1.585,1974.9,1974.2,0.06746175]
[1772191935320,1.585,1974.9,1974.4,0.06315226]
[1772191935704,0.001,1974.9,1974.4,0.06315226]
[1772191936502,1.421,1975.5,1974.5,0.05998524]
[1772191936721,1.18866315,1975.4,1974.5,0.05998524]
[1772191936926,0.001,1975.4,1974.5,0.05998524]
[1772191937322,0.001,1975.4,1974.7,0.0568395]
[1772191937530,1.18766315,1975.0,1974.2,1.32424004]
[1772191937729,1.18766315,1975.0,1974.2,1.26740054]
[1772191937905,1.18866315,1974.9,1974.2,1.26740054]
[1772191938235,12.08622292,1976.1,1974.2,1.26740054]
[1772191938236,2.45447528,1975.8,1974.6,0.05273017]
[1772191938407,1.18816315,1975.7,1974.6,0.05273017]
[1772191939621,1.18816315,1975.7,1974.8,0.04965497]
[1772191939815,2.45354275,1975.7,1974.8,0.04965497]
[1772191940433,1.18816315,1975.7,1974.8,0.04965497]
[1772191941414,0.001,1975.8,1974.8,0.04965497]
[1772191941635,0.001,1975.8,1975.0,0.04361095]
[1772191942138,0.001,1975.8,1975.2,0.04062544]
[1772191943621,0.001,1975.8,1975.3,1.30041258]
[1772191944447,0.001,1975.7,1975.3,1.30041258]
[1772191945311,0.001,1975.7,1975.4,0.03190764]
[1772191945932,0.001,1975.7,1975.5,1.2655024]
[1772191946244,0.001,1975.7,1975.4,1.26551352]
[1772191946759,0.001,1975.7,1975.2,5.06264474]
[1772191947512,0.001,1975.7,1974.7,1.74794597]
[1772191947513,1.18916315,1975.7,1974.8,5.06378365]
[1772191947813,1.18916315,1975.7,1974.9,0.02626306]
[1772191949016,2.45455711,1975.7,1975.0,1.26582278]
[1772191949507,2.45455711,1975.7,1975.0,1.28658959]
[1772191949908,2.45455711,1975.7,1975.0,1.26582278]
[1772191950118,1.18816315,1975.6,1975.0,1.26582278]
[1772191950722,1.18816315,1975.5,1974.4,1.27793421]
[1772191950921,1.18816315,1975.4,1974.4,1.27793421]
[1772191951214,1.18816315,1975.2,1974.3,0.0011]
[1772191951409,1.18816315,1974.9,1974.3,0.0011]
[1772191951615,1.18816315,1974.9,1974.1,0.0011]
[1772191953248,1.18816315,1974.9,1974.1,1.26749987]
[1772191953632,2.45334387,1975.2,1974.1,1.26749987]
[1772191953955,2.45328943,1975.3,1974.2,7.039244]
[1772191954175,1.18761315,1975.3,1974.2,7.039244]
[1772191954462,2.45315194,1975.5,1974.4,1.74794597]
[1772191954928,1.18761315,1975.4,1974.2,2.924]
[1772191955334,1.18761315,1975.4,1974.4,15.645887]
[1772191955728,1.18761315,1975.4,1974.4,12.118667]
[1772191956597,0.001,1974.9,1974.4,12.118667]
[1772191956758,0.001,1974.9,1974.5,1.74794597]
[1772191957426,0.001,1974.9,1974.6,1.2660792]
[1772191959433,0.001,1974.9,1974.4,5.06431682]
[1772191959950,1.18761315,1975.3,1974.4,5.06431682]
[1772191960358,0.001,1975.7,1974.9,1.74794597]
[1772191960558,0.001,1975.7,1975.0,12.25777]
[1772191960757,0.001,1975.7,1974.9,1.74794597]
[1772191960956,0.001,1975.7,1975.0,3.38035]
[1772191961467,0.001,1975.7,1975.1,1.26575869]
[1772191963469,0.001,1975.7,1975.0,5.06303478]
[1772191963864,1.18761315,1976.4,1975.3,12.785205]
[1772191965948,1.18761315,1976.3,1975.4,1.26556646]
[1772191967657,1.18761315,1976.3,1974.0,0.0011]
[1772191967658,8.787904,1974.6,1974.0,0.0011]
[1772191967981,8.787904,1974.6,1973.1,2.84673494]
[1772191967982,0.0033,1973.6,1973.2,1.26697749]
[1772191968154,1.12074639,1974.3,1974.2,0.0011]
[1772191968359,1.12074639,1974.3,1973.2,10.05488149]
[1772191968743,1.12074639,1974.3,1974.0,0.0011]
[1772191969567,2.38688564,1974.6,1974.0,8.789004]
[1772191972084,2.38695384,1974.4,1974.0,0.0011]
[1772191972976,1.12074639,1974.3,1973.3,1.26691329]
[1772191973162,1.12074639,1974.3,1973.4,8.787904]
[1772191974054,1.26633573,1974.2,1973.4,10.05472326]
[1772191974256,1.12074639,1974.6,1973.4,11.12667384]
[1772191974477,2.38682559,1974.6,1973.4,11.12667384]
[1772191974683,2.38682559,1974.6,1973.5,1.06812933]
[1772191975381,2.38682559,1974.6,1973.6,9.85603333]
[1772191975581,2.38682559,1974.6,1973.6,1.06812933]
[1772191976162,2.38682559,1974.6,1973.7,1.26665653]
[1772191976555,1.12074639,1974.5,1973.8,8.787904]
[1772191976760,1.12074639,1974.5,1973.7,8.787904]
[1772191978573,1.26620745,1974.4,1973.8,1.26659235]
[1772191979268,1.26601509,1974.7,1973.9,8.787904]
[1772191979466,2.38676148,1974.7,1973.9,8.787904]
[1772191979667,3.95476148,1974.7,1973.9,8.787904]
[1772191980199,1.12074639,1974.6,1973.9,8.787904]
[1772191980496,1.12074639,1974.6,1973.9,8.789004]
[1772191980791,0.001,1974.3,1973.9,10.05547019]
[1772191981618,0.001,1974.3,1973.9,8.789004]
[1772191983303,1.12174639,1974.3,1973.9,8.789004]
[1772191983821,1.12174639,1974.3,1973.9,0.0011]
[1772191984024,1.14598846,1973.9,1973.6,0.0011]
[1772191984194,1.12074639,1973.7,1972.4,1.03677088]
[1772191984385,1.12074639,1973.4,1972.5,8.787904]
[1772191984588,1.12074639,1973.4,1972.3,8.787904]
[1772191984812,1.12074639,1973.4,1972.2,8.787904]
[1772191984813,1.12074639,1973.1,1972.2,8.787904]
[1772191985023,1.26710593,1973.0,1972.3,1.26755564]
[1772191985326,2.38785232,1973.0,1972.2,10.05547529]
[1772191986287,1.12074639,1972.9,1972.2,10.05547529]
[1772191986686,2.38775145,1973.2,1972.2,10.05547529]
[1772191987922,1.12074639,1973.1,1972.2,10.05547529]
[1772191988997,1.12074639,1972.9,1972.2,10.05547529]
[1772191989198,1.12074639,1972.9,1972.2,8.787904]
[1772191989494,1.12074639,1972.8,1972.2,8.787904]
[1772191989824,1.12074639,1972.8,1972.2,10.05552109]
[1772191989996,1.12074639,1972.8,1972.2,10.03027902]
[1772191990835,1.12074639,1972.8,1972.2,8.76266193]
[1772191991745,1.26729862,1972.7,1972.2,10.03027497]
[1772191991900,1.12074639,1972.8,1972.2,10.03027497]
[1772191992103,2.38799123,1972.8,1972.2,10.03027497]
[1772191992729,1.01436604,1972.7,1972.2,8.76266193]
[1772191993244,1.01436604,1972.7,1971.7,1.26791676]
[1772191993528,1.01436604,1972.5,1972.3,0.0011]
[1772191993730,1.01436604,1972.5,1971.6,5.07188125]
[1772191993915,1.01436604,1972.5,1971.7,7.63935172]
[1772191993916,2.28182852,1972.5,1971.7,7.63935172]
[1772191994142,2.28182852,1972.5,1972.2,0.0011]
[1772191994829,1.01436604,1972.5,1972.2,0.0011]
[1772191995026,1.01436604,1972.8,1972.2,7.64045172]
[1772191996307,1.01436604,1972.8,1972.2,0.0011]
[1772191996308,2.28166466,1972.7,1972.2,0.0011]
[1772191997011,1.01436604,1973.4,1972.3,1.0649548]
[1772191997231,1.01436604,1973.4,1972.4,1.0649548]
[1772191997411,1.2667611,1973.6,1972.6,1.0649548]
[1772191997615,1.01436604,1973.5,1972.6,1.0649548]
[1772191997822,1.01436604,1973.5,1972.7,7.63935172]
[1772191998030,1.01436604,1973.5,1972.6,7.63935172]
[1772191998207,1.01436604,1973.3,1972.4,1.26749138]
[1772191998404,1.26684909,1973.4,1972.5,1.0649548]
[1772191998618,1.26684909,1973.4,1972.6,1.0649548]
[1772191999411,1.26684909,1973.4,1972.7,7.63935172]
[1772191999813,1.26682955,1973.5,1972.7,7.63935172]
[1772192000036,1.01436604,1973.6,1972.7,8.70430652]
[1772192000238,2.28109026,1973.6,1972.7,8.70430652]
[1772192000417,1.01436604,1973.6,1972.8,1.26723438]
[1772192000613,2.28109645,1973.6,1972.8,1.26723438]
[1772192001141,2.28108894,1973.6,1972.8,1.26723438]
[1772192001361,1.01436604,1973.6,1972.8,1.26723438]
[1772192001674,1.01436604,1973.6,1972.9,7.63935172]
[1772192001946,6.3697755,1973.9,1972.9,8.70430652]
[1772192002132,1.01436604,1973.8,1972.9,8.70430652]
[1772192002329,1.26665653,1973.7,1973.0,1.26710593]
[1772192002522,2.28102257,1973.7,1973.0,1.26710593]
[1772192003236,1.01436604,1973.7,1973.0,1.26710593]
[1772192003435,1.01436604,1973.7,1973.1,7.63935172]
[1772192003821,5.35541494,1973.9,1973.1,7.63935172]
[1772192003822,5.35538201,1973.9,1973.1,7.63935172]
[1772192004022,3.79038201,1973.9,1973.1,7.63935172]
[1772192004224,1.01436604,1973.8,1973.1,7.63935172]
[1772192004525,2.28102257,1973.7,1973.1,8.90636391]
[1772192004829,2.28102257,1973.7,1973.1,8.90638899]
[1772192005642,1.01436604,1973.6,1973.1,7.63935172]
[1772192006536,1.26678489,1973.5,1973.1,7.63935172]
[1772192007343,1.01436604,1973.4,1973.1,7.63935172]
[1772192007741,1.01436604,1973.4,1972.4,1.0649548]
[1772192008813,1.26691329,1973.3,1972.5,2.33238192]
[1772192009730,1.26774959,1973.6,1972.7,1.0649548]
[1772192009933,1.26774959,1973.6,1972.3,2.33245874]
[1772192009934,3.46643709,1973.3,1972.3,2.33245874]
[1772192010136,1.01436604,1973.2,1972.3,2.33245874]
[1772192010723,1.26684909,1973.4,1972.5,2.33238192]
[1772192011447,2.28121513,1973.4,1972.5,2.33238192]
[1772192011944,2.28121513,1973.4,1972.6,1.0649548]
[1772192012815,2.28121513,1973.4,1972.6,2.33226567]
[1772192013661,1.01436604,1973.2,1972.3,1.0649548]
[1772192013838,4.0,1973.1,1972.3,1.0649548]
[1772192014159,1.01436604,1973.0,1972.2,0.0011]
[1772192014354,1.01436604,1972.9,1972.2,0.0011]